[Event "Titled Tuesday Blitz March 28 Early 2023"]
[White "Sadhwani, Raunak"]
[Black "Pichot, Alan"]
[WhiteFideId "35093487"]
[BlackFideId "110973"]
[WhiteElo "2631"]
[BlackElo "2573"]
[Result "1-0"]
[Round "07"]
[TimeControl "180+2"]
[Date "2023.03.28"]
[WhiteClock "0:00:08"]
[BlackClock "0:00:05"]

1. d4 {[%clk 0:03:00]}  Nf6 {[%clk 0:02:56]} 2. Nc3 {[%clk 0:03:01]}  d5 {[%clk 0:02:53]} 3. Bf4 {[%clk 0:03:01]}  c5 {[%clk 0:02:54]} 4. e3 {[%clk 0:03:01]}  cxd4 {[%clk 0:02:53]} 5. exd4 {[%clk 0:03:02]}  a6 {[%clk 0:02:52]} 6. Nf3 {[%clk 0:02:56]}  Nc6 {[%clk 0:02:52]} 7. Ne5 {[%clk 0:02:56]}  Bd7 {[%clk 0:02:53]} 8. g4 {[%clk 0:02:49]}  Qb6 {[%clk 0:02:37]} 9. Nxd7 {[%clk 0:02:36]}  Nxd7 {[%clk 0:02:36]} 10. Nxd5 {[%clk 0:02:20]}  Qa5+ {[%clk 0:02:34]} 11. Nc3 {[%clk 0:02:20]}  e5 {[%clk 0:02:33]} 12. dxe5 {[%clk 0:02:12]}  Ndxe5 {[%clk 0:02:28]} 13. Bg2 {[%clk 0:02:01]}  Bb4 {[%clk 0:01:39]} 14. Bxc6+ {[%clk 0:01:05]}  bxc6 {[%clk 0:01:25]} 15. Bxe5 {[%clk 0:01:05]}  Qxe5+ {[%clk 0:01:23]} 16. Qe2 {[%clk 0:01:05]}  Bd6 {[%clk 0:00:56]} 17. O-O-O {[%clk 0:00:57]}  O-O {[%clk 0:00:51]} 18. Qxe5 {[%clk 0:00:57]}  Bxe5 {[%clk 0:00:52]} 19. Ne2 {[%clk 0:00:48]}  f5 {[%clk 0:00:50]} 20. g5 {[%clk 0:00:47]}  Rae8 {[%clk 0:00:46]} 21. h4 {[%clk 0:00:45]}  Bxb2+ {[%clk 0:00:45]} 22. Kxb2 {[%clk 0:00:45]}  Rxe2 {[%clk 0:00:45]} 23. Rd6 {[%clk 0:00:44]}  Rxf2 {[%clk 0:00:39]} 24. Rxc6 {[%clk 0:00:44]}  f4 {[%clk 0:00:39]} 25. Rc7 {[%clk 0:00:29]}  f3 {[%clk 0:00:38]} 26. Rd1 {[%clk 0:00:28]}  Rh2 {[%clk 0:00:35]} 27. Rdd7 {[%clk 0:00:28]}  Rxh4 {[%clk 0:00:23]} 28. Rxg7+ {[%clk 0:00:28]}  Kh8 {[%clk 0:00:24]} 29. Rgf7 {[%clk 0:00:29]}  Rxf7 {[%clk 0:00:16]} 30. Rxf7 {[%clk 0:00:30]}  Rh3 {[%clk 0:00:17]} 31. c4 {[%clk 0:00:29]}  Kg8 {[%clk 0:00:17]} 32. Rf4 {[%clk 0:00:29]}  Kg7 {[%clk 0:00:03]} 33. c5 {[%clk 0:00:27]}  Rh5 {[%clk 0:00:04]} 34. Rxf3 {[%clk 0:00:24]}  Rxg5 {[%clk 0:00:04]} 35. Rc3 {[%clk 0:00:25]}  Kf7 {[%clk 0:00:04]} 36. c6 {[%clk 0:00:22]}  Rg8 {[%clk 0:00:04]} 37. Kb3 {[%clk 0:00:20]}  Ke6 {[%clk 0:00:04]} 38. Kb4 {[%clk 0:00:15]}  Kd6 {[%clk 0:00:04]} 39. c7 {[%clk 0:00:15]}  Rc8 {[%clk 0:00:04]} 40. Rh3 {[%clk 0:00:11]}  Rxc7 {[%clk 0:00:05]} 41. Rh6+ {[%clk 0:00:10]}  Kd5 {[%clk 0:00:05]} 42. Rxa6 {[%clk 0:00:10]}  Rb7+ {[%clk 0:00:06]} 43. Kc3 {[%clk 0:00:10]}  Rc7+ {[%clk 0:00:06]} 44. Kd3 {[%clk 0:00:10]}  Rg7 {[%clk 0:00:06]} 45. Rh6 {[%clk 0:00:11]}  Rg3+ {[%clk 0:00:05]} 46. Kc2 {[%clk 0:00:11]}  Rg2+ {[%clk 0:00:05]} 47. Kb3 {[%clk 0:00:12]}  Rg3+ {[%clk 0:00:06]} 48. Kb4 {[%clk 0:00:12]}  Rg7 {[%clk 0:00:06]} 49. a4 {[%clk 0:00:10]}  Rb7+ {[%clk 0:00:06]} 50. Ka5 {[%clk 0:00:11]}  Kc5 {[%clk 0:00:06]} 51. Ka6 {[%clk 0:00:12]}  Rg7 {[%clk 0:00:05]} 52. a5 {[%clk 0:00:12]}  Rf7 {[%clk 0:00:05]} 53. Rh5+ {[%clk 0:00:09]}  Kc6 {[%clk 0:00:05]} 54. Rh6+ {[%clk 0:00:10]}  Kc5 {[%clk 0:00:05]} 55. Rb6 {[%clk 0:00:10]}  Rg7 {[%clk 0:00:05]} 56. Rb7 {[%clk 0:00:10]}  Rg6+ {[%clk 0:00:03]} 57. Ka7 {[%clk 0:00:10]}  h5 {[%clk 0:00:03]} 58. Rh7 {[%clk 0:00:11]}  Kb5 {[%clk 0:00:02]} 59. Rxh5+ {[%clk 0:00:10]}  Kc6 {[%clk 0:00:03]} 60. Rh7 {[%clk 0:00:10]}  Kb5 {[%clk 0:00:02]} 61. Rh5+ {[%clk 0:00:10]}  Kc6 {[%clk 0:00:03]} 62. Rf5 {[%clk 0:00:08]}  Rg7+ {[%clk 0:00:03]} 63. Ka6 {[%clk 0:00:09]}  Kc7 {[%clk 0:00:03]} 64. Rb5 {[%clk 0:00:09]}  Rg6+ {[%clk 0:00:03]} 65. Ka7 {[%clk 0:00:10]}  Rg8 {[%clk 0:00:02]} 66. Rc5+ {[%clk 0:00:10]}  Kd7 {[%clk 0:00:02]} 67. a6 {[%clk 0:00:10]}  Rg1 {[%clk 0:00:01]} 68. Ka8 {[%clk 0:00:05]}  Rb1 {[%clk 0:00:02]} 69. a7 {[%clk 0:00:05]}  Kd6 {[%clk 0:00:02]} 70. Rc8 {[%clk 0:00:05]}  Kd7 {[%clk 0:00:03]} 71. Rb8 {[%clk 0:00:06]}  Ra1 {[%clk 0:00:03]} 72. Kb7 {[%clk 0:00:06]}  Rb1+ {[%clk 0:00:03]} 73. Ka6 {[%clk 0:00:07]}  Ra1+ {[%clk 0:00:04]} 74. Kb6 {[%clk 0:00:07]}  Rb1+ {[%clk 0:00:04]} 75. Kc5 {[%clk 0:00:08]}  Rc1+ {[%clk 0:00:05]} 76. Kd4 {[%clk 0:00:08]} 1-0


[Site "https://www.chess.com"]

[Event "Titled Tuesday Blitz March 28 Early 2023"]
[White "Gabrielian, Artur"]
[Black "Martinez Alcantara, Jose Eduardo"]
[WhiteFideId "4131002"]
[BlackFideId "3805662"]
[WhiteElo "2432"]
[BlackElo "2712"]
[Result "1/2-1/2"]
[Round "07"]
[TimeControl "180+2"]
[Date "2023.03.28"]
[WhiteClock "0:00:10"]
[BlackClock "0:00:07"]

1. e4 {[%clk 0:03:00]}  c5 {[%clk 0:02:59]} 2. Nf3 {[%clk 0:03:00]}  d6 {[%clk 0:02:59]} 3. d4 {[%clk 0:03:00]}  cxd4 {[%clk 0:03:00]} 4. Nxd4 {[%clk 0:03:01]}  Nf6 {[%clk 0:03:01]} 5. Nc3 {[%clk 0:03:01]}  a6 {[%clk 0:03:01]} 6. Bc4 {[%clk 0:03:01]}  e6 {[%clk 0:03:00]} 7. Be3 {[%clk 0:03:01]}  Be7 {[%clk 0:02:56]} 8. Bb3 {[%clk 0:02:59]}  Nc6 {[%clk 0:02:52]} 9. Qe2 {[%clk 0:02:47]}  Na5 {[%clk 0:02:50]} 10. g4 {[%clk 0:02:45]}  Nxb3 {[%clk 0:02:44]} 11. axb3 {[%clk 0:02:45]}  Nd7 {[%clk 0:02:33]} 12. g5 {[%clk 0:02:40]}  Qc7 {[%clk 0:02:22]} 13. h4 {[%clk 0:02:39]}  Nc5 {[%clk 0:02:15]} 14. b4 {[%clk 0:02:34]}  Nd7 {[%clk 0:02:14]} 15. h5 {[%clk 0:02:31]}  O-O {[%clk 0:02:04]} 16. g6 {[%clk 0:02:27]}  Ne5 {[%clk 0:02:03]} 17. gxh7+ {[%clk 0:02:24]}  Kh8 {[%clk 0:02:03]} 18. Rg1 {[%clk 0:02:23]}  Bd7 {[%clk 0:01:51]} 19. f4 {[%clk 0:02:20]}  Nc4 {[%clk 0:01:50]} 20. O-O-O {[%clk 0:02:16]}  Rac8 {[%clk 0:01:47]} 21. Rd3 {[%clk 0:02:04]}  Bf6 {[%clk 0:01:45]} 22. h6 {[%clk 0:01:30]}  g6 {[%clk 0:01:39]} 23. f5 {[%clk 0:01:30]}  Ne5 {[%clk 0:01:26]} 24. Rdd1 {[%clk 0:01:21]}  Kxh7 {[%clk 0:01:26]} 25. fxg6+ {[%clk 0:01:11]}  fxg6 {[%clk 0:01:27]} 26. Bg5 {[%clk 0:01:11]}  Bh8 {[%clk 0:01:27]} 27. Rdf1 {[%clk 0:01:09]}  Qc4 {[%clk 0:01:19]} 28. Rxf8 {[%clk 0:00:46]}  Rxf8 {[%clk 0:01:16]} 29. Qxc4 {[%clk 0:00:37]}  Nxc4 {[%clk 0:01:17]} 30. Rd1 {[%clk 0:00:36]}  Be5 {[%clk 0:01:03]} 31. b3 {[%clk 0:00:35]}  Nb6 {[%clk 0:01:03]} 32. Rd3 {[%clk 0:00:33]}  Rf1+ {[%clk 0:01:00]} 33. Kb2 {[%clk 0:00:29]}  Bf6 {[%clk 0:00:44]} 34. Bxf6 {[%clk 0:00:27]}  Rxf6 {[%clk 0:00:45]} 35. e5 {[%clk 0:00:28]}  dxe5 {[%clk 0:00:41]} 36. Nf3 {[%clk 0:00:27]}  Bc6 {[%clk 0:00:36]} 37. Nxe5 {[%clk 0:00:27]}  Rf5 {[%clk 0:00:36]} 38. Nxc6 {[%clk 0:00:13]}  bxc6 {[%clk 0:00:37]} 39. Rd6 {[%clk 0:00:13]}  Nd5 {[%clk 0:00:38]} 40. Rxc6 {[%clk 0:00:12]}  Nxb4 {[%clk 0:00:37]} 41. Rxe6 {[%clk 0:00:12]}  Rf2 {[%clk 0:00:38]} 42. Ne4 {[%clk 0:00:12]}  Rxc2+ {[%clk 0:00:38]} 43. Ka3 {[%clk 0:00:12]}  Nd3 {[%clk 0:00:35]} 44. Rxa6 {[%clk 0:00:12]}  Rc1 {[%clk 0:00:36]} 45. Ka4 {[%clk 0:00:10]}  Kxh6 {[%clk 0:00:35]} 46. Kb5 {[%clk 0:00:09]}  Rb1 {[%clk 0:00:35]} 47. Kc4 {[%clk 0:00:09]}  Ne5+ {[%clk 0:00:35]} 48. Kc3 {[%clk 0:00:09]}  Rc1+ {[%clk 0:00:32]} 49. Kd2 {[%clk 0:00:09]}  Rb1 {[%clk 0:00:32]} 50. Kc2 {[%clk 0:00:10]}  Re1 {[%clk 0:00:32]} 51. Nc5 {[%clk 0:00:09]}  Re2+ {[%clk 0:00:26]} 52. Kc3 {[%clk 0:00:09]}  Re1 {[%clk 0:00:27]} 53. b4 {[%clk 0:00:08]}  Rb1 {[%clk 0:00:27]} 54. Rb6 {[%clk 0:00:08]}  Kh5 {[%clk 0:00:26]} 55. Kd4 {[%clk 0:00:08]}  Nf3+ {[%clk 0:00:26]} 56. Ke4 {[%clk 0:00:08]}  Nd2+ {[%clk 0:00:25]} 57. Kd3 {[%clk 0:00:09]}  Nf3 {[%clk 0:00:26]} 58. Ke4 {[%clk 0:00:09]}  Ng5+ {[%clk 0:00:22]} 59. Kd5 {[%clk 0:00:10]}  Nh3 {[%clk 0:00:20]} 60. b5 {[%clk 0:00:10]}  g5 {[%clk 0:00:20]} 61. Rb8 {[%clk 0:00:09]}  g4 {[%clk 0:00:21]} 62. b6 {[%clk 0:00:10]}  g3 {[%clk 0:00:17]} 63. Rh8+ {[%clk 0:00:10]}  Kg4 {[%clk 0:00:17]} 64. Rg8+ {[%clk 0:00:10]}  Kf3 {[%clk 0:00:13]} 65. b7 {[%clk 0:00:10]}  Nf4+ {[%clk 0:00:14]} 66. Kc6 {[%clk 0:00:10]}  g2 {[%clk 0:00:13]} 67. Nd7 {[%clk 0:00:10]}  Rc1+ {[%clk 0:00:06]} 68. Kd6 {[%clk 0:00:10]}  Rd1+ {[%clk 0:00:04]} 69. Kc6 {[%clk 0:00:10]}  Rc1+ {[%clk 0:00:04]} 70. Kd6 {[%clk 0:00:10]}  Rb1 {[%clk 0:00:04]} 71. b8=Q {[%clk 0:00:10]}  Rxb8 {[%clk 0:00:05]} 72. Nxb8 {[%clk 0:00:10]}  Ne2 {[%clk 0:00:06]} 73. Rxg2 {[%clk 0:00:10]}  Kxg2 {[%clk 0:00:07]} 1/2-1/2


[Site "https://www.chess.com"]

[Event "Titled Tuesday Blitz March 28 Early 2023"]
[White "Alekseenko, Kirill"]
[Black "Ozen, Bahadir"]
[WhiteFideId "4135539"]
[BlackFideId "6337058"]
[WhiteElo "2683"]
[BlackElo "2503"]
[Result "1-0"]
[Round "07"]
[TimeControl "180+2"]
[Date "2023.03.28"]
[WhiteClock "0:01:22"]
[BlackClock "0:01:23"]

1. d4 {[%clk 0:03:00]}  d5 {[%clk 0:02:58]} 2. Nc3 {[%clk 0:02:58]}  Nf6 {[%clk 0:02:58]} 3. Bf4 {[%clk 0:02:58]}  e6 {[%clk 0:02:58]} 4. Nb5 {[%clk 0:02:56]}  Bb4+ {[%clk 0:02:58]} 5. c3 {[%clk 0:02:56]}  Ba5 {[%clk 0:02:59]} 6. e3 {[%clk 0:02:57]}  a6 {[%clk 0:02:56]} 7. Na3 {[%clk 0:02:56]}  Nbd7 {[%clk 0:02:47]} 8. Nf3 {[%clk 0:02:56]}  O-O {[%clk 0:02:39]} 9. Bd3 {[%clk 0:02:56]}  c5 {[%clk 0:02:34]} 10. O-O {[%clk 0:02:54]}  Bc7 {[%clk 0:02:34]} 11. Nc2 {[%clk 0:02:51]}  b6 {[%clk 0:02:25]} 12. Ne5 {[%clk 0:02:37]}  Bb7 {[%clk 0:02:25]} 13. Qf3 {[%clk 0:02:26]}  c4 {[%clk 0:02:13]} 14. Bxc4 {[%clk 0:02:14]}  Nxe5 {[%clk 0:02:11]} 15. Bxe5 {[%clk 0:02:10]}  Bxe5 {[%clk 0:02:07]} 16. dxe5 {[%clk 0:02:11]}  Nd7 {[%clk 0:01:59]} 17. Bd3 {[%clk 0:02:07]}  Qg5 {[%clk 0:01:59]} 18. Qh3 {[%clk 0:02:03]}  h6 {[%clk 0:01:51]} 19. f4 {[%clk 0:02:03]}  Qe7 {[%clk 0:01:52]} 20. Nd4 {[%clk 0:02:03]}  Nc5 {[%clk 0:01:52]} 21. Bc2 {[%clk 0:02:04]}  Ne4 {[%clk 0:01:46]} 22. Rad1 {[%clk 0:02:03]}  Rac8 {[%clk 0:01:45]} 23. Qg4 {[%clk 0:01:35]}  f5 {[%clk 0:01:39]} 24. exf6 {[%clk 0:01:32]}  Rxf6 {[%clk 0:01:39]} 25. Nf3 {[%clk 0:01:25]}  Rcf8 {[%clk 0:01:27]} 26. Bxe4 {[%clk 0:01:24]}  dxe4 {[%clk 0:01:27]} 27. Ne5 {[%clk 0:01:24]}  Rd8 {[%clk 0:01:22]} 28. Rxd8+ {[%clk 0:01:22]}  Qxd8 {[%clk 0:01:23]} 29. Rd1 {[%clk 0:01:22]} 1-0


[Site "https://www.chess.com"]

[Event "Titled Tuesday Blitz March 28 Early 2023"]
[White "Flores, Diego"]
[Black "Kamsky, Gata"]
[WhiteFideId "108049"]
[BlackFideId "2000024"]
[WhiteElo "2606"]
[BlackElo "2666"]
[Result "0-1"]
[Round "07"]
[TimeControl "180+2"]
[Date "2023.03.28"]
[WhiteClock "0:00:10"]
[BlackClock "0:01:19"]

1. c4 {[%clk 0:03:00]}  g6 {[%clk 0:02:54]} 2. Nc3 {[%clk 0:03:00]}  Bg7 {[%clk 0:02:53]} 3. g3 {[%clk 0:03:00]}  Nf6 {[%clk 0:02:50]} 4. Bg2 {[%clk 0:03:00]}  O-O {[%clk 0:02:51]} 5. e4 {[%clk 0:03:00]}  c5 {[%clk 0:02:43]} 6. Nge2 {[%clk 0:02:59]}  Nc6 {[%clk 0:02:42]} 7. d3 {[%clk 0:03:00]}  d6 {[%clk 0:02:40]} 8. O-O {[%clk 0:03:00]}  Rb8 {[%clk 0:02:39]} 9. h3 {[%clk 0:02:57]}  Ne8 {[%clk 0:02:37]} 10. Be3 {[%clk 0:02:56]}  Nd4 {[%clk 0:02:31]} 11. Rb1 {[%clk 0:02:55]}  Nxe2+ {[%clk 0:02:17]} 12. Qxe2 {[%clk 0:02:55]}  Nc7 {[%clk 0:02:11]} 13. Qd2 {[%clk 0:02:55]}  Ne6 {[%clk 0:02:09]} 14. b4 {[%clk 0:02:51]}  b6 {[%clk 0:02:08]} 15. Ne2 {[%clk 0:02:42]}  Bb7 {[%clk 0:02:04]} 16. Bh6 {[%clk 0:02:34]}  Bxh6 {[%clk 0:01:52]} 17. Qxh6 {[%clk 0:02:35]}  cxb4 {[%clk 0:01:45]} 18. Rxb4 {[%clk 0:02:28]}  Nc5 {[%clk 0:01:45]} 19. Qe3 {[%clk 0:02:27]}  e5 {[%clk 0:01:44]} 20. f4 {[%clk 0:02:25]}  f6 {[%clk 0:01:40]} 21. h4 {[%clk 0:01:24]}  Qc7 {[%clk 0:01:37]} 22. f5 {[%clk 0:01:15]}  Nxd3 {[%clk 0:01:33]} 23. Rb5 {[%clk 0:00:37]}  Nc5 {[%clk 0:01:31]} 24. fxg6 {[%clk 0:00:24]}  hxg6 {[%clk 0:01:31]} 25. h5 {[%clk 0:00:25]}  gxh5 {[%clk 0:01:29]} 26. g4 {[%clk 0:00:24]}  h4 {[%clk 0:01:23]} 27. g5 {[%clk 0:00:24]}  Qg7 {[%clk 0:01:21]} 28. gxf6 {[%clk 0:00:12]}  Rxf6 {[%clk 0:01:20]} 29. Rbb1 {[%clk 0:00:10]}  Bxe4 {[%clk 0:01:19]} 0-1


[Site "https://www.chess.com"]

[Event "Titled Tuesday Blitz March 28 Early 2023"]
[White "Iniyan, P"]
[Black "Bacrot, Etienne"]
[WhiteFideId "25002767"]
[BlackFideId "605506"]
[WhiteElo "2449"]
[BlackElo "2663"]
[Result "1-0"]
[Round "07"]
[TimeControl "180+2"]
[Date "2023.03.28"]
[WhiteClock "0:00:16"]
[BlackClock "0:00:10"]

1. d4 {[%clk 0:03:00]}  Nf6 {[%clk 0:02:54]} 2. c4 {[%clk 0:03:01]}  e6 {[%clk 0:02:54]} 3. Nc3 {[%clk 0:03:02]}  Bb4 {[%clk 0:02:53]} 4. a3 {[%clk 0:02:59]}  Bxc3+ {[%clk 0:02:53]} 5. bxc3 {[%clk 0:03:00]}  d6 {[%clk 0:02:53]} 6. e3 {[%clk 0:03:00]}  O-O {[%clk 0:02:52]} 7. Bd3 {[%clk 0:03:01]}  e5 {[%clk 0:02:52]} 8. Ne2 {[%clk 0:03:01]}  Nc6 {[%clk 0:02:52]} 9. O-O {[%clk 0:03:01]}  Qe7 {[%clk 0:02:45]} 10. f4 {[%clk 0:03:00]}  exf4 {[%clk 0:02:36]} 11. Nxf4 {[%clk 0:02:58]}  Bg4 {[%clk 0:02:30]} 12. Qe1 {[%clk 0:02:53]}  Rae8 {[%clk 0:02:29]} 13. Qg3 {[%clk 0:02:38]}  Bh5 {[%clk 0:02:19]} 14. Nxh5 {[%clk 0:02:11]}  Nxh5 {[%clk 0:02:18]} 15. Qh3 {[%clk 0:02:12]}  g6 {[%clk 0:02:14]} 16. e4 {[%clk 0:02:10]}  Qe6 {[%clk 0:02:06]} 17. g4 {[%clk 0:02:09]}  Na5 {[%clk 0:01:50]} 18. Bh6 {[%clk 0:02:00]}  Ng7 {[%clk 0:01:48]} 19. Rf2 {[%clk 0:01:38]}  f6 {[%clk 0:01:43]} 20. Raf1 {[%clk 0:01:38]}  Rf7 {[%clk 0:01:43]} 21. Qh4 {[%clk 0:01:22]}  Ref8 {[%clk 0:01:31]} 22. Be3 {[%clk 0:01:19]}  b6 {[%clk 0:01:22]} 23. d5 {[%clk 0:01:09]}  Qe7 {[%clk 0:01:01]} 24. Bd4 {[%clk 0:01:07]}  Ne8 {[%clk 0:00:59]} 25. Qh6 {[%clk 0:00:51]}  Nb3 {[%clk 0:00:54]} 26. h4 {[%clk 0:00:48]}  Qd7 {[%clk 0:00:42]} 27. Rf4 {[%clk 0:00:30]}  Rg7 {[%clk 0:00:22]} 28. Kh2 {[%clk 0:00:29]}  Qe7 {[%clk 0:00:15]} 29. g5 {[%clk 0:00:27]}  Nxd4 {[%clk 0:00:14]} 30. cxd4 {[%clk 0:00:26]}  Rgf7 {[%clk 0:00:15]} 31. gxf6 {[%clk 0:00:23]}  Rxf6 {[%clk 0:00:15]} 32. e5 {[%clk 0:00:19]}  dxe5 {[%clk 0:00:13]} 33. Rxf6 {[%clk 0:00:17]}  Rxf6 {[%clk 0:00:12]} 34. Re1 {[%clk 0:00:17]}  Rf4 {[%clk 0:00:10]} 35. Qxf4 {[%clk 0:00:16]} 1-0


[Site "https://www.chess.com"]

[Event "Titled Tuesday Blitz March 28 Early 2023"]
[White "Danielyan, Vahe"]
[Black "Ibarra Jerez, Jose Carlos"]
[WhiteFideId "13304828"]
[BlackFideId "2226332"]
[WhiteElo "2423"]
[BlackElo "2638"]
[Result "0-1"]
[Round "07"]
[TimeControl "180+2"]
[Date "2023.03.28"]
[WhiteClock "0:00:02"]
[BlackClock "0:00:07"]

1. e4 {[%clk 0:03:00]}  c5 {[%clk 0:03:00]} 2. Nc3 {[%clk 0:03:00]}  a6 {[%clk 0:03:00]} 3. g3 {[%clk 0:02:58]}  b5 {[%clk 0:03:00]} 4. Bg2 {[%clk 0:02:58]}  Bb7 {[%clk 0:03:01]} 5. Nge2 {[%clk 0:02:58]}  e6 {[%clk 0:03:01]} 6. d4 {[%clk 0:02:58]}  cxd4 {[%clk 0:03:00]} 7. Nxd4 {[%clk 0:02:58]}  Ne7 {[%clk 0:03:00]} 8. O-O {[%clk 0:02:58]}  Nec6 {[%clk 0:03:00]} 9. Nb3 {[%clk 0:02:50]}  d6 {[%clk 0:02:59]} 10. Re1 {[%clk 0:02:49]}  Be7 {[%clk 0:02:54]} 11. Bf4 {[%clk 0:02:33]}  Ne5 {[%clk 0:02:47]} 12. Nc5 {[%clk 0:02:27]}  Bc6 {[%clk 0:02:39]} 13. Nd3 {[%clk 0:02:27]}  Nbd7 {[%clk 0:02:38]} 14. a4 {[%clk 0:02:25]}  bxa4 {[%clk 0:02:29]} 15. Nxa4 {[%clk 0:02:24]}  O-O {[%clk 0:02:27]} 16. Nc3 {[%clk 0:02:21]}  Qc7 {[%clk 0:02:26]} 17. Nxe5 {[%clk 0:02:20]}  Nxe5 {[%clk 0:02:24]} 18. Bf1 {[%clk 0:02:18]}  a5 {[%clk 0:02:22]} 19. Be3 {[%clk 0:02:14]}  Qb7 {[%clk 0:02:20]} 20. b3 {[%clk 0:02:12]}  Rfc8 {[%clk 0:02:08]} 21. Bd4 {[%clk 0:01:57]}  Bf6 {[%clk 0:02:08]} 22. Bg2 {[%clk 0:01:48]}  Qb4 {[%clk 0:02:08]} 23. Kh1 {[%clk 0:01:37]}  Ng4 {[%clk 0:02:00]} 24. Qxg4 {[%clk 0:01:12]}  Bxd4 {[%clk 0:01:59]} 25. Na2 {[%clk 0:01:10]}  Qc5 {[%clk 0:01:35]} 26. c3 {[%clk 0:01:00]}  Bxf2 {[%clk 0:01:32]} 27. Rf1 {[%clk 0:01:00]}  Bb5 {[%clk 0:01:05]} 28. c4 {[%clk 0:00:59]}  Be8 {[%clk 0:01:04]} 29. Rad1 {[%clk 0:00:52]}  Bd4 {[%clk 0:01:03]} 30. Nc1 {[%clk 0:00:46]}  Rab8 {[%clk 0:01:02]} 31. Nd3 {[%clk 0:00:39]}  Qa7 {[%clk 0:01:01]} 32. Nf4 {[%clk 0:00:33]}  Be5 {[%clk 0:00:48]} 33. Bh3 {[%clk 0:00:22]}  Qe7 {[%clk 0:00:39]} 34. Rd3 {[%clk 0:00:20]}  g6 {[%clk 0:00:36]} 35. Rdf3 {[%clk 0:00:18]}  Rc7 {[%clk 0:00:25]} 36. Nh5 {[%clk 0:00:15]}  f5 {[%clk 0:00:16]} 37. exf5 {[%clk 0:00:15]}  exf5 {[%clk 0:00:14]} 38. Rxf5 {[%clk 0:00:12]}  Bd7 {[%clk 0:00:14]} 39. Bg2 {[%clk 0:00:05]}  Bxf5 {[%clk 0:00:15]} 40. Rxf5 {[%clk 0:00:05]}  Kh8 {[%clk 0:00:15]} 41. Rg5 {[%clk 0:00:05]}  gxh5 {[%clk 0:00:14]} 42. Qxh5 {[%clk 0:00:05]}  Bf6 {[%clk 0:00:14]} 43. Rf5 {[%clk 0:00:05]}  Rf8 {[%clk 0:00:10]} 44. Bd5 {[%clk 0:00:05]}  Bg7 {[%clk 0:00:08]} 45. Rg5 {[%clk 0:00:02]}  Qe1+ {[%clk 0:00:07]} 0-1


[Site "https://www.chess.com"]

[Event "Titled Tuesday Blitz March 28 Early 2023"]
[White "Krysa, Leandro"]
[Black "Erigaisi Arjun"]
[WhiteFideId "116807"]
[BlackFideId "35009192"]
[WhiteElo "2485"]
[BlackElo "2737"]
[Result "0-1"]
[Round "07"]
[TimeControl "180+2"]
[Date "2023.03.28"]
[WhiteClock "0:00:02"]
[BlackClock "0:00:51"]

1. e4 {[%clk 0:03:00]}  d6 {[%clk 0:03:00]} 2. d4 {[%clk 0:03:00]}  g6 {[%clk 0:03:00]} 3. Nf3 {[%clk 0:02:59]}  Bg7 {[%clk 0:03:01]} 4. Bc4 {[%clk 0:03:00]}  Nc6 {[%clk 0:02:58]} 5. c3 {[%clk 0:02:55]}  Nf6 {[%clk 0:02:56]} 6. Qe2 {[%clk 0:02:53]}  e5 {[%clk 0:02:55]} 7. dxe5 {[%clk 0:02:50]}  Nxe5 {[%clk 0:02:54]} 8. Nxe5 {[%clk 0:02:50]}  dxe5 {[%clk 0:02:55]} 9. O-O {[%clk 0:02:50]}  O-O {[%clk 0:02:56]} 10. Bg5 {[%clk 0:02:48]}  h6 {[%clk 0:02:55]} 11. Bh4 {[%clk 0:02:48]}  c6 {[%clk 0:02:55]} 12. a4 {[%clk 0:02:46]}  Qc7 {[%clk 0:02:50]} 13. Nd2 {[%clk 0:02:45]}  Nh5 {[%clk 0:02:51]} 14. Rfd1 {[%clk 0:02:39]}  Nf4 {[%clk 0:02:48]} 15. Qe1 {[%clk 0:02:32]}  Kh7 {[%clk 0:02:45]} 16. Nf1 {[%clk 0:02:20]}  f5 {[%clk 0:02:31]} 17. exf5 {[%clk 0:02:16]}  gxf5 {[%clk 0:02:31]} 18. Bg3 {[%clk 0:02:04]}  Ng6 {[%clk 0:02:29]} 19. f3 {[%clk 0:01:50]}  b5 {[%clk 0:02:24]} 20. axb5 {[%clk 0:01:42]}  cxb5 {[%clk 0:02:25]} 21. Bd5 {[%clk 0:01:43]}  Bb7 {[%clk 0:02:24]} 22. Bxb7 {[%clk 0:01:37]}  Qxb7 {[%clk 0:02:25]} 23. Bf2 {[%clk 0:01:37]}  a5 {[%clk 0:02:20]} 24. Rd6 {[%clk 0:01:37]}  b4 {[%clk 0:02:17]} 25. Rad1 {[%clk 0:01:34]}  bxc3 {[%clk 0:02:07]} 26. Rd7 {[%clk 0:01:29]}  Qxb2 {[%clk 0:02:04]} 27. Rb1 {[%clk 0:01:23]}  Qa3 {[%clk 0:01:57]} 28. Rbb7 {[%clk 0:00:59]}  Rg8 {[%clk 0:01:57]} 29. Ng3 {[%clk 0:00:54]}  c2 {[%clk 0:01:11]} 30. Rbc7 {[%clk 0:00:48]}  Rad8 {[%clk 0:01:11]} 31. Rxd8 {[%clk 0:00:32]}  Rxd8 {[%clk 0:01:11]} 32. Rxc2 {[%clk 0:00:32]}  Qd3 {[%clk 0:01:11]} 33. Ra2 {[%clk 0:00:28]}  Nf4 {[%clk 0:01:05]} 34. Rxa5 {[%clk 0:00:25]}  Qc2 {[%clk 0:01:05]} 35. Ra1 {[%clk 0:00:23]}  Rd2 {[%clk 0:01:01]} 36. Rc1 {[%clk 0:00:20]}  Qd3 {[%clk 0:01:00]} 37. h3 {[%clk 0:00:15]}  h5 {[%clk 0:00:55]} 38. Kh2 {[%clk 0:00:14]}  h4 {[%clk 0:00:56]} 39. Nxf5 {[%clk 0:00:11]}  Re2 {[%clk 0:00:56]} 40. Qa5 {[%clk 0:00:05]}  Qxf5 {[%clk 0:00:54]} 41. Rc7 {[%clk 0:00:02]}  Qg6 {[%clk 0:00:51]} 0-1


[Site "https://www.chess.com"]